bitfinex/quotes_ETHUSD_20241116
["timestamp","ask_amount","ask_price","bid_price","bid_amount"]
[1731728480802,3.18685,3137.9,3137.3,4.36971848]
[1731728480961,3.18685,3137.9,3137.3,4.37293324]
[1731728481166,12.10628,3138.5,3137.3,4.37293324]
[1731728481371,3.18675,3138.0,3137.3,4.37293324]
[1731728481700,3.18654,3138.2,3137.5,0.5632]
[1731728481879,3.18656,3138.2,3137.5,3.75364476]
[1731728482087,8.92,3138.7,3137.6,0.06374391]
[1731728482287,3.18624,3138.5,3137.9,0.5632]
[1731728482475,3.18624,3138.5,3138.0,0.375007]
[1731728482891,3.18624,3138.5,3138.0,0.37822176]
[1731728483087,3.18598,3138.8,3138.1,3.74984]
[1731728483272,3.18598,3138.8,3138.2,6.18652]
[1731728483596,3.18598,3138.8,3138.2,3.00321476]
[1731728483770,3.18598,3138.8,3138.3,0.35664148]
[1731728484356,3.18598,3138.8,3138.4,0.5632]
[1731728484674,3.18583,3138.9,3138.4,0.5632]
[1731728484872,8.92,3139.7,3138.4,3.74951]
[1731728484873,3.18568,3139.1,3138.4,3.74951]
[1731728485071,3.18574,3139.0,3138.4,3.74951]
[1731728485268,3.18574,3139.0,3138.5,0.37527248]
[1731728485564,3.18517,3139.6,3138.5,0.37527248]
[1731728485900,3.18581,3139.0,3138.5,0.37527248]
[1731728486497,3.24095538,3138.9,3138.5,0.37848724]
[1731728487094,0.05506538,3138.9,3138.6,3.74932]
[1731728487397,3.18552,3139.2,3138.6,3.75253476]
[1731728487560,0.05334505,3139.1,3138.7,0.41915271]
[1731728488383,0.05334505,3139.1,3138.8,0.5632]
[1731728488726,3.18491,3139.8,3139.0,3.18571]
[1731728489009,3.18491,3139.8,3139.1,1.200352]
[1731728489010,3.18509,3139.7,3139.1,1.200352]
[1731728489170,3.18472,3140.0,3139.1,1.20356676]
[1731728489375,8.92,3140.7,3139.1,1.20356676]
[1731728489376,3.18408,3140.7,3139.7,0.5632]
[1731728489577,3.18363,3141.1,3140.3,3.1844]
[1731728489775,3.18363,3141.1,3140.4,0.5632]
[1731728490469,3.18362,3141.1,3140.4,0.5632]
[1731728490671,3.18369,3141.1,3140.5,0.37507848]
[1731728490903,0.55,3141.6,3140.5,0.37507848]
[1731728491099,3.1836,3141.1,3140.5,3.37829324]
[1731728491299,3.1841,3140.6,3140.5,0.00321476]
[1731728491667,3.18396,3140.8,3140.5,0.00321476]
[1731728492404,3.08610698,3141.4,3140.5,0.00321476]
[1731728492405,3.18402,3140.7,3140.5,0.00321476]
[1731728493010,3.1838,3140.9,3140.5,0.00321476]
[1731728493213,3.18316,3141.6,3140.7,0.5632]
[1731728493214,3.18338,3141.4,3140.7,0.5632]
[1731728493512,3.1831,3141.6,3140.9,3.0]
[1731728493675,3.18338,3141.4,3141.0,0.5632]
[1731728493877,6.3669,3141.3,3141.0,0.5632]
[1731728494098,3.18268,3142.0,3141.0,0.5632]
[1731728494099,3.18319,3141.5,3141.0,0.5632]
[1731728494414,3.18359,3141.1,3141.0,0.5632]
[1731728494589,3.18351,3141.2,3141.0,0.5632]
[1731728494780,3.18359,3141.1,3141.0,0.5632]
[1731728495112,3.18369,3141.0,3140.9,0.00321476]
[1731728498109,3.98729,3141.0,3140.9,0.00321476]
[1731728498285,4.704378,3141.0,3140.9,0.00321476]
[1731728498688,5.254378,3141.0,3140.9,0.00321476]
[1731728501620,5.3088612,3141.0,3140.9,0.00321476]
[1731728503610,8.3088612,3141.0,3140.9,0.00321476]
[1731728504424,0.01,3140.3,3139.0,3.32251169]
[1731728504616,0.01,3140.3,3139.4,3.18527]
[1731728504617,3.23871824,3140.2,3139.4,3.18527]
[1731728504822,3.23871824,3140.2,3139.3,3.0]
[1731728505000,3.23871824,3140.2,3139.2,0.05]
[1731728505001,3.23871824,3140.2,3139.6,3.0]
[1731728505201,0.05412824,3140.2,3139.6,3.618521]
[1731728505428,3.23863824,3140.2,3139.6,3.618521]
[1731728505638,3.23863824,3140.2,3139.7,3.0]
[1731728506044,3.23863824,3140.2,3139.6,0.618521]
[1731728506609,3.18463,3140.1,3139.6,0.62173576]
[1731728506961,0.05402753,3140.0,3139.6,0.62173576]
[1731728507247,3.23879753,3140.0,3139.6,0.62173576]
[1731728507844,3.18501,3139.7,3139.6,0.00321476]
[1731728508044,0.01,3139.9,3139.6,0.00321476]
[1731728508247,0.05388196,3139.7,3139.6,0.00321476]
[1731728508748,0.05385991,3139.7,3139.6,0.00321476]
[1731728509257,3.18482,3139.9,3139.6,0.00321476]
[1731728509490,3.18463,3140.1,3139.6,0.00321476]
[1731728509491,0.05381401,3139.7,3139.6,0.00321476]
[1731728509746,3.18463,3140.1,3139.6,3.62206024]
[1731728509945,0.05381707,3139.7,3139.6,3.62206024]
[1731728510149,3.18463,3140.1,3139.6,3.62206024]
[1731728510607,0.05395956,3140.0,3139.6,3.62206024]
[1731728511749,0.05395956,3140.0,3139.8,3.18482]
[1731728511905,0.05395956,3140.0,3139.9,6.503292]
[1731728512250,3.18413,3140.6,3140.0,3.0]
[1731728512412,0.01,3140.7,3140.0,3.1847]
[1731728512614,3.18417,3140.6,3140.1,3.0]
[1731728512808,3.18417,3140.6,3140.1,0.00321476]
[1731728513009,3.18424,3140.5,3140.1,0.00321476]
[1731728513748,3.18432,3140.4,3140.1,0.00321476]
[1731728514310,3.18451,3140.2,3140.1,0.00321476]
[1731728516511,3.23676027,3140.2,3140.1,0.00321476]
[1731728518079,0.05225027,3140.2,3140.1,0.00321476]
[1731728518488,3.18443,3140.3,3140.1,0.00321476]
[1731728518682,0.05223374,3140.2,3140.1,0.00321476]
[1731728518882,3.18443,3140.3,3140.1,0.00321476]
[1731728519095,0.05223374,3140.2,3140.1,0.00321476]
[1731728519475,3.18421,3140.5,3140.1,0.00321476]
[1731728520024,0.05232342,3140.4,3140.1,0.00321476]
[1731728521728,3.18417,3140.6,3140.1,0.00321476]
[1731728522069,0.05227858,3140.3,3140.1,0.00321476]
[1731728522220,3.18417,3140.6,3140.1,0.62200624]
[1731728522381,0.05236825,3140.5,3140.1,0.62200624]
[1731728522576,3.18431,3140.4,3140.1,0.62200624]
[1731728522775,3.18431,3140.4,3140.1,0.00321476]
[1731728523116,0.05227858,3140.3,3140.1,0.00321476]
[1731728523413,3.23668858,3140.3,3140.1,0.00321476]
[1731728523597,0.05227858,3140.3,3140.1,0.00321476]
[1731728523975,3.18451,3140.2,3140.1,0.00321476]
[1731728524175,3.23676517,3140.2,3140.1,0.00321476]
[1731728526812,3.87987169,3140.2,3140.1,0.00321476]
[1731728527120,3.88987169,3140.2,3140.1,0.00321476]
[1731728528831,0.05225517,3140.2,3140.1,0.00321476]
[1731728529327,3.18451,3140.2,3140.1,0.00321476]
[1731728529834,3.19672661,3140.2,3140.1,0.00321476]
[1731728530040,3.74672661,3140.2,3140.1,0.00321476]
[1731728530491,3.19672661,3140.2,3140.1,0.00321476]
[1731728530693,3.91327127,3140.2,3140.1,0.00321476]
[1731728531303,3.19672661,3140.2,3140.1,0.00321476]
[1731728532215,3.74672661,3140.2,3140.1,0.00321476]
[1731728532423,6.82957738,3140.2,3140.1,0.00321476]
[1731728533303,7.63757738,3140.2,3140.1,0.00321476]
[1731728535220,16.55757738,3140.2,3140.1,4.76e-06]
[1731728535541,21.53277712,3140.2,3140.1,4.76e-06]
[1731728535749,21.54277712,3140.2,3140.1,4.76e-06]
[1731728536711,21.53277712,3140.2,3140.1,4.76e-06]
[1731728537154,21.49058134,3140.2,3140.1,4.76e-06]
[1731728537806,3.0,3140.1,3138.1,0.62231588]
[1731728538007,3.18605,3138.7,3138.2,0.36223159]
[1731728538213,3.18603,3138.8,3137.9,3.1868]
[1731728538456,0.05143815,3138.6,3137.9,3.1868]
[1731728538627,0.05137243,3138.5,3137.7,3.18701]
[1731728538955,3.18634,3138.4,3137.8,0.318701]
[1731728539323,0.05128204,3138.3,3137.8,3.318701]
[1731728539544,3.23779204,3138.3,3137.8,0.318701]
[1731728539726,3.23779204,3138.3,3137.9,0.3318701]
[1731728540053,0.05128204,3138.3,3137.9,0.3318701]
[1731728540268,3.18657,3138.2,3137.9,0.3318701]
[1731728540568,3.23787937,3138.1,3137.8,0.32191576]
[1731728540852,3.18674,3138.0,3137.8,0.00321476]
[1731728541066,0.05098538,3137.9,3137.8,0.00321476]
[1731728541849,3.23782538,3137.9,3137.8,0.00321476]
[1731728542555,3.24782538,3137.9,3137.8,0.00321476]
[1731728542764,3.97207292,3137.9,3137.8,0.00321476]
[1731728543064,5.34007292,3137.9,3137.8,0.00321476]
[1731728543223,5.34007292,3137.9,3137.8,4.76e-06]
[1731728544432,17.26007292,3137.9,3137.8,4.76e-06]
[1731728547066,17.90429324,3137.9,3137.8,4.76e-06]
[1731728549427,20.98714401,3137.9,3137.8,4.76e-06]
[1731728555276,17.90429324,3137.9,3137.8,4.76e-06]
[1731728555437,20.98714401,3137.9,3137.8,4.76e-06]
[1731728556570,20.58715846,3137.9,3137.8,4.76e-06]
[1731728556771,20.43714401,3137.9,3137.8,4.76e-06]
[1731728557638,17.43714401,3137.9,3137.8,4.76e-06]
[1731728557840,20.43714401,3137.9,3137.8,4.76e-06]
[1731728558038,20.98714401,3137.9,3137.8,4.76e-06]
[1731728558357,12.06714401,3137.9,3137.8,4.76e-06]
[1731728559333,9.06714401,3137.9,3137.8,4.76e-06]
[1731728559541,3.25782538,3137.9,3137.8,4.76e-06]
[1731728559734,0.05098538,3137.9,3137.8,4.76e-06]
[1731728560136,3.18606,3138.7,3137.9,3.18675]
[1731728560333,0.01,3138.9,3138.0,3.50533548]
[1731728560572,3.18594,3138.8,3138.1,3.18663]
[1731728560776,3.19581,3139.0,3138.3,6.1864]
[1731728560982,3.18581,3139.0,3138.3,6.1864]
[1731728561281,3.18583,3138.9,3138.4,0.61864]
[1731728561486,3.18517,3139.6,3138.5,3.18614]
[1731728561487,3.18548,3139.3,3138.5,3.18614]
[1731728561694,3.18557,3139.2,3138.5,3.18614]
[1731728562375,0.0496815,3139.1,3138.7,3.18598]
[1731728562574,0.0496815,3139.1,3138.8,0.32497003]
[1731728562878,3.18533,3139.4,3138.8,0.32497003]
[1731728563241,0.04977123,3139.3,3138.8,0.32497003]
[1731728563454,3.18543,3139.3,3138.8,0.32497003]
[1731728563672,0.04972637,3139.2,3138.8,0.32818479]
[1731728563857,0.04972637,3139.2,3138.8,0.00321476]
[1731728564061,0.0496815,3139.1,3138.8,0.00321476]
[1731728564289,3.18543,3139.3,3138.8,0.00321476]
[1731728564606,0.04972637,3139.2,3138.8,0.00321476]
[1731728564949,3.1854,3139.4,3138.8,0.00321476]
[1731728565190,0.0496815,3139.1,3138.8,0.62214824]
[1731728565363,3.18543,3139.3,3138.8,0.62214824]
[1731728565566,0.57,3139.5,3138.8,0.00321476]
[1731728565567,3.18582,3138.9,3138.8,0.00321476]
[1731728565870,3.74582,3138.9,3138.8,0.00321476]
[1731728566069,4.58381175,3138.9,3138.8,0.00321476]
[1731728566276,16.50381175,3138.9,3137.1,3.18764]
[1731728566492,16.50381175,3138.9,3136.1,0.64127657]
[1731728566493,3.18774,3137.1,3136.2,0.15077559]
[1731728566711,0.04893539,3137.0,3136.2,0.15077559]
[1731728567011,3.23673539,3137.0,3136.2,3.33929559]
[1731728567300,3.23676045,3136.9,3136.3,0.65279356]
[1731728567475,3.18805,3136.8,3136.0,3.18876]
[1731728567677,0.04879751,3136.7,3136.1,3.0]
[1731728567877,3.18805,3136.8,3136.1,3.0]
[1731728568082,3.18777,3137.0,3136.2,0.618876]
[1731728568083,0.04879751,3136.7,3136.2,0.618876]
[1731728568276,3.18788,3136.9,3136.3,3.0]
[1731728568480,0.04884245,3136.8,3136.2,0.618876]
[1731728568805,3.19857,3136.2,3135.0,3.18969]
[1731728568962,3.18882,3136.0,3135.3,3.18948]
[1731728569164,3.18882,3136.0,3134.9,0.63804313]
[1731728569165,3.19915,3135.7,3134.9,0.63804313]
[1731728569369,3.18926,3135.6,3134.8,3.18991]
[1731728569570,0.04808958,3135.6,3134.6,3.19019]
[1731728569808,0.04808958,3135.6,3134.9,3.18985]
[1731728570308,3.1892,3135.6,3134.8,3.18995]
[1731728570602,0.04801147,3135.5,3134.9,3.0]
[1731728571003,0.04801147,3135.5,3134.9,3.00321476]
[1731728571180,0.04801147,3135.5,3135.0,0.61931648]
[1731728572373,3.23729147,3135.5,3134.9,0.00321476]
[1731728572569,3.18928,3135.5,3134.9,0.02321476]
[1731728572773,0.0478695,3135.4,3134.9,0.02321476]
[1731728572967,0.0478695,3135.4,3134.9,0.67643714]
[1731728573207,3.18951,3135.3,3134.9,0.67643714]
[1731728573528,0.04777954,3135.2,3134.9,0.02321476]
[1731728573683,3.23744954,3135.2,3134.9,0.02321476]
[1731728573886,3.23744954,3135.2,3134.9,0.00321476]
[1731728573887,3.19979,3135.0,3134.9,0.00321476]
[1731728574123,3.23746606,3135.0,3134.9,0.00321476]
[1731728574405,3.79746606,3135.0,3134.9,0.00321476]
[1731728575471,3.78746606,3135.0,3134.9,0.00321476]
[1731728575868,3.79746606,3135.0,3134.9,0.00321476]
[1731728576110,3.23746606,3135.0,3134.9,0.00321476]
[1731728576810,0.04767606,3135.0,3134.9,0.00321476]
[1731728577178,3.1894,3135.4,3134.9,0.00321476]
[1731728577496,3.1994,3135.4,3134.9,0.00321476]
[1731728577803,0.04772687,3135.3,3134.9,0.00321476]
[1731728578419,3.23724687,3135.3,3134.9,0.00321476]
[1731728579344,0.04772687,3135.3,3134.9,0.30353624]
[1731728579495,0.04772687,3135.3,3135.0,3.18972]
[1731728579698,3.19901,3135.8,3135.0,3.18972]
[1731728579891,0.0479172,3135.7,3135.2,3.0]
[1731728580132,3.19878,3136.0,3135.4,3.0]
[1731728580330,0.04787223,3135.6,3135.2,0.00321476]
[1731728580530,3.18887,3135.9,3135.4,0.00321476]
[1731728580730,0.01,3136.0,3135.4,0.00321476]
[1731728581037,0.04796217,3135.8,3135.4,0.00321476]
[1731728581223,0.04800714,3135.9,3135.4,0.00321476]
[1731728581424,0.04792337,3135.7,3135.5,0.30032148]
[1731728581624,0.04796834,3135.8,3135.5,0.30032148]
[1731728581835,0.01,3135.5,3135.4,0.00321476]
[1731728582184,0.05783343,3135.5,3135.4,0.00321476]
[1731728582326,0.01,3135.5,3135.4,0.00321476]
[1731728582528,3.24713984,3135.5,3135.4,0.00321476]
[1731728582846,3.19928,3135.5,3135.4,0.00321476]
[1731728583000,3.24713984,3135.5,3135.4,0.00321476]
[1731728583201,0.04785984,3135.5,3135.4,0.00321476]
[1731728583744,0.04785554,3135.5,3135.4,0.00321476]
[1731728584130,3.1889,3135.9,3135.4,0.00321476]
[1731728584342,0.04785554,3135.5,3135.4,0.32249124]
[1731728584500,3.18858,3136.2,3135.4,0.32249124]
[1731728584700,0.04812104,3136.1,3135.5,3.18927]
[1731728585413,0.04812104,3136.1,3135.6,3.06378012]
[1731728585743,3.18803,3136.8,3135.7,0.30637801]
[1731728585961,3.1978,3137.0,3136.1,3.0]
[1731728586105,0.04840609,3136.7,3136.1,3.0]
[1731728586305,0.7608,3137.2,3136.1,0.00321476]
[1731728586306,3.18826,3136.5,3136.1,0.00321476]
[1731728586527,3.23664125,3136.4,3136.1,0.00321476]
[1731728586708,0.04827125,3136.4,3136.1,0.00321476]
[1731728586925,3.18807,3136.7,3136.1,0.00321476]
[1731728587131,0.04839553,3136.6,3136.1,3.00321476]
[1731728587302,0.04839553,3136.6,3136.1,3.62241224]
[1731728588246,0.04839553,3136.6,3136.1,0.62241224]
[1731728588431,0.04839553,3136.6,3136.1,3.19179476]
[1731728588633,3.19786,3136.9,3136.1,3.19179476]
[1731728588634,3.19786,3136.9,3136.2,6.18856]
[1731728588835,0.0484218,3136.5,3136.3,3.18843]
[1731728589140,0.04837685,3136.4,3136.3,0.00321476]
[1731728589503,3.18777,3137.0,3136.3,6.19168476]
[1731728589740,0.04860156,3136.9,3136.4,6.18834]
[1731728589940,0.04860156,3136.9,3136.3,3.94124924]
[1731728590184,3.18778,3137.0,3136.3,3.94124924]
[1731728590343,3.18778,3137.0,3136.3,0.94124924]
[1731728590344,0.04855662,3136.8,3136.3,0.94124924]
[1731728590546,3.18798,3136.8,3136.3,0.00321476]
[1731728590958,0.04851169,3136.7,3136.3,0.00321476]
[1731728591386,3.18808,3136.7,3136.3,0.00321476]
[1731728591683,3.18836,3136.4,3136.3,0.00321476]
[1731728591846,3.23676079,3136.4,3136.3,0.00321476]
[1731728592046,3.88026087,3136.4,3136.3,0.00321476]
[1731728592588,4.43026087,3136.4,3136.3,0.00321476]
[1731728592782,5.21796087,3136.4,3136.3,0.00321476]
[1731728593152,8.95655688,3136.4,3136.3,0.00321476]
[1731728594146,5.21796087,3136.4,3136.3,0.00321476]
[1731728596148,8.95655688,3136.4,3136.3,0.00321476]
[1731728598093,5.21796087,3136.4,3136.3,0.00321476]
[1731728598419,4.57446079,3136.4,3136.3,0.00321476]
[1731728598598,3.78676079,3136.4,3136.3,0.00321476]
[1731728599491,3.23676079,3136.4,3136.3,0.00321476]
[1731728604434,3.24676079,3136.4,3136.3,0.00321476]
[1731728607041,0.04840079,3136.4,3136.3,0.00321476]
[1731728607626,3.23676079,3136.4,3136.3,0.00321476]
[1731728607826,4.64266387,3136.4,3136.3,0.00321476]
[1731728608769,5.19266387,3136.4,3136.3,0.00321476]
[1731728610925,3.23676079,3136.4,3136.3,0.00321476]
[1731728612376,0.04840079,3136.4,3136.3,0.00321476]
[1731728612737,3.18808,3136.7,3136.3,0.00321476]
[1731728613066,3.23502101,3136.6,3136.3,0.00321476]
[1731728613454,3.18836,3136.4,3136.3,0.00321476]
[1731728613981,3.23510111,3136.4,3136.3,0.00321476]
[1731728616683,3.88844622,3136.4,3136.3,0.00321476]
[1731728619193,3.23510111,3136.4,3136.3,0.00321476]
[1731728620819,0.04674111,3136.4,3136.3,0.00321476]
[1731728621500,3.18809,3136.7,3136.3,0.00321476]
[1731728621706,0.04685373,3136.6,3136.3,0.00321476]
[1731728621906,3.18827,3136.5,3136.3,0.00321476]
[1731728622107,0.04676384,3136.4,3136.3,0.00321476]
[1731728622331,3.19809,3136.7,3136.3,0.00321476]
[1731728622332,3.18816,3136.6,3136.3,0.00321476]
[1731728622585,0.04680879,3136.5,3136.3,0.00321476]
[1731728623590,0.04680879,3136.5,3136.3,0.32240124]
[1731728623810,3.20787,3136.9,3136.3,0.32240124]
[1731728624017,0.04678531,3136.4,3136.3,0.00321476]
[1731728624217,0.01,3137.7,3136.3,6.74181077]
[1731728624429,3.19707,3137.7,3136.9,3.0]
[1731728624630,3.19707,3137.7,3137.1,3.0]
[1731728624797,3.18707,3137.7,3137.1,3.0]
[1731728625804,3.19707,3137.7,3137.1,3.0]
[1731728626317,3.19707,3137.7,3137.1,3.00321476]
[1731728626623,3.18736,3137.4,3137.1,0.00321476]
[1731728626831,3.18755,3137.2,3137.1,0.00321476]
[1731728627316,3.19755,3137.2,3137.1,0.00321476]
[1731728627518,3.20755,3137.2,3137.1,0.00321476]
[1731728631807,3.75755,3137.2,3137.1,0.00321476]
[1731728632135,4.301814,3137.2,3137.1,0.00321476]
[1731728633220,3.20755,3137.2,3137.1,0.00321476]
[1731728633612,3.19755,3137.2,3137.1,0.00321476]
[1731728633815,3.18755,3137.2,3137.1,0.00321476]
[1731728634201,3.18736,3137.4,3137.1,0.00321476]
[1731728634555,3.18697,3137.8,3137.1,3.19083476]
[1731728634839,3.18705,3137.7,3137.2,3.31908348]
[1731728635047,3.18664,3138.1,3137.4,3.18727]
[1731728635249,3.18656,3138.2,3137.6,3.0]
[1731728635549,3.18656,3138.2,3137.7,0.618723]
[1731728636107,3.18665,3138.1,3137.7,0.62193776]
[1731728636351,3.18694,3137.8,3137.7,0.00321476]
[1731728636501,3.23452795,3137.8,3137.7,0.00321476]
[1731728645829,4.05382795,3137.8,3137.7,0.00321476]
[1731728646158,4.60382795,3137.8,3137.7,0.00321476]
[1731728646362,5.70257675,3137.8,3137.7,0.00321476]
[1731728647145,17.63907675,3137.8,3137.7,4.76e-06]
[1731728648027,0.01,3136.3,3135.5,0.24]
[1731728648224,0.01,3136.3,3135.3,0.64867757]
[1731728648567,0.01,3136.3,3135.1,3.18967]
[1731728648568,3.18895,3135.9,3134.9,3.18987]
[1731728648727,0.04661438,3135.8,3135.2,3.18958]
[1731728648922,3.23560438,3135.8,3135.2,3.18958]
[1731728649529,0.04661438,3135.8,3135.2,0.00321476]
[1731728649820,3.19889,3135.9,3135.2,0.00321476]
[1731728650037,0.01,3135.9,3135.2,0.65440694]
[1731728650235,0.04657817,3135.8,3135.4,3.0]
[1731728650479,3.23556817,3135.8,3135.4,0.00321476]
[1731728650628,0.04657817,3135.8,3135.4,0.68761345]
[1731728650967,3.18806,3136.7,3135.7,6.18908]
[1731728651176,3.18806,3136.7,3136.0,3.18876]
[1731728651177,3.23348011,3136.6,3136.0,3.18876]
[1731728651471,3.23348011,3136.6,3136.0,0.00321476]
[1731728651472,3.18869,3136.1,3136.0,0.00321476]
[1731728651630,3.19869,3136.1,3136.0,0.00321476]
[1731728651947,3.23376907,3136.1,3136.0,0.00321476]
[1731728655233,0.04507907,3136.1,3136.0,0.00321476]
[1731728655670,3.18865,3136.2,3136.0,0.00321476]
[1731728655836,0.0450859,3136.1,3136.0,0.00321476]
[1731728656043,3.2337559,3136.1,3136.0,0.00321476]
[1731728659076,0.0450859,3136.1,3136.0,0.00321476]
[1731728659239,3.2337559,3136.1,3136.0,0.00321476]
[1731728660962,0.0450859,3136.1,3136.0,0.00321476]
[1731728661155,3.18867,3136.1,3136.0,0.00321476]
[1731728661373,3.23375649,3136.1,3136.0,0.00321476]
[1731728662399,5.26278714,3136.1,3136.0,0.00321476]
[1731728666072,5.26278714,3136.1,3136.0,4.76e-06]
[1731728666268,17.19278714,3136.1,3136.0,4.76e-06]
[1731728666471,3.19004,3134.8,3134.1,3.19063]
[1731728666990,0.0444593,3134.7,3134.1,3.19063]
[1731728667189,0.0444593,3134.7,3134.2,0.319063]
[1731728667398,3.2346293,3134.7,3134.2,0.319063]
[1731728667565,3.19022,3134.6,3134.0,3.0]
[1731728667772,0.04434266,3134.5,3134.0,3.0]
[1731728668398,3.19028,3134.6,3134.0,3.0]
[1731728668556,0.04427662,3134.4,3134.0,3.62230376]
[1731728668768,3.19067,3134.2,3134.0,0.00321476]
[1731728669096,0.04414159,3134.1,3134.0,0.00321476]
[1731728669275,3.23484159,3134.1,3134.0,0.00321476]
[1731728670174,0.04414159,3134.1,3134.0,0.00321476]
[1731728670503,3.24484159,3134.1,3134.0,0.00321476]
[1731728672126,0.05414159,3134.1,3134.0,0.00321476]
[1731728672413,3.24484159,3134.1,3134.0,0.00321476]
[1731728674182,4.65767875,3134.1,3134.0,0.00321476]
[1731728674512,5.20767875,3134.1,3134.0,0.00321476]
[1731728675299,3.24484159,3134.1,3134.0,0.00321476]
[1731728676580,0.04414159,3134.1,3134.0,0.00321476]
[1731728677686,3.23484159,3134.1,3134.0,0.00321476]
[1731728678097,3.24484159,3134.1,3134.0,0.00321476]
[1731728681099,4.56314159,3134.1,3134.0,0.00321476]
[1731728681315,5.33950675,3134.1,3134.0,0.00321476]
[1731728685904,4.78950675,3134.1,3134.0,0.00321476]
[1731728686621,4.02120675,3134.1,3134.0,0.00321476]
[1731728687379,3.24484159,3134.1,3134.0,0.00321476]
[1731728690496,3.79484159,3134.1,3134.0,0.00321476]
[1731728695768,3.24484159,3134.1,3134.0,0.00321476]
[1731728698778,0.04414159,3134.1,3134.0,0.23841517]
[1731728698985,0.04414159,3134.1,3134.0,3.77216669]
[1731728699183,0.01,3134.5,3134.1,3.1907]
[1731728699408,0.01,3134.6,3134.1,3.19391476]
[1731728699551,0.04114006,3134.4,3134.1,3.19391476]
[1731728699751,0.04118507,3134.5,3134.1,3.19391476]
[1731728700075,0.01,3134.4,3134.2,0.37720567]
[1731728700278,3.1905,3134.3,3134.2,0.00321476]
[1731728700499,0.05109506,3134.3,3134.2,0.00321476]
[1731728700652,3.24159506,3134.3,3134.2,0.00321476]
[1731728701754,0.04109506,3134.3,3134.2,0.00321476]
[1731728701950,3.57674257,3134.3,3134.2,0.00321476]
[1731728702163,4.12674257,3134.3,3134.2,0.2383996]
[1731728702713,4.12674257,3134.3,3134.2,0.00321476]
[1731728703850,7.97778261,3134.3,3134.2,0.00321476]
[1731728704400,10.98778261,3134.3,3134.2,4.76e-06]
[1731728704602,19.90778261,3134.3,3134.2,4.76e-06]
[1731728705156,0.01,3132.9,3132.4,0.02]
[1731728705385,0.02,3132.9,3132.4,0.02]
[1731728705594,3.23244896,3132.8,3132.4,0.02]
[1731728706298,3.19222,3132.7,3132.4,0.02]
[1731728706497,3.23244896,3132.8,3132.2,0.02]
[1731728706707,0.04028262,3132.6,3132.2,0.322]
[1731728707004,0.01,3132.5,3132.2,0.02]
[1731728707208,3.19244,3132.4,3132.2,0.02]
[1731728707687,3.23261814,3132.3,3132.2,0.02]
[1731728707997,3.23261814,3132.3,3132.2,0.02321476]
[1731728708407,3.24261814,3132.3,3132.2,0.02321476]
[1731728709273,0.05007814,3132.3,3132.2,0.00321476]
[1731728709676,3.24261814,3132.3,3132.2,0.00321476]
[1731728710418,3.25261814,3132.3,3132.2,0.00321476]
[1731728710616,3.89712495,3132.3,3132.2,0.00321476]
[1731728710924,4.44712495,3132.3,3132.2,0.00321476]
[1731728711293,5.24552495,3132.3,3132.2,0.00321476]
[1731728712720,0.61007814,3132.3,3132.2,0.00321476]
[1731728712921,3.25261814,3132.3,3132.2,0.00321476]
[1731728713404,3.80261814,3132.3,3132.2,0.00321476]
[1731728713611,0.05007814,3132.3,3132.2,0.00321476]
[1731728714359,3.24261814,3132.3,3132.2,0.00321476]
[1731728715145,3.79261814,3132.3,3132.2,0.00321476]
[1731728715626,0.60007814,3132.3,3132.2,0.00321476]
[1731728715948,4.98127095,3132.3,3132.2,0.00321476]
[1731728716103,4.60101814,3132.3,3132.2,0.00321476]
[1731728716829,3.80261814,3132.3,3132.2,0.00321476]
[1731728717806,3.79101814,3132.3,3132.2,0.00321476]
[1731728718006,3.80212147,3132.3,3132.2,0.00321476]
[1731728718539,3.25212147,3132.3,3132.2,0.00321476]
[1731728718916,3.80212147,3132.3,3132.2,0.00321476]
[1731728719100,4.50156762,3132.3,3132.2,0.00321476]
[1731728719798,3.80212147,3132.3,3132.2,0.00321476]
[1731728721316,3.25212147,3132.3,3132.2,0.00321476]
[1731728723159,3.24212147,3132.3,3132.2,0.00321476]
[1731728723453,3.25212147,3132.3,3132.2,0.00321476]
[1731728725050,4.62192147,3132.3,3132.2,0.00321476]
[1731728725234,5.72258962,3132.3,3132.2,0.00321476]
[1731728725440,3.80212147,3132.3,3132.2,0.00321476]
[1731728726010,3.25212147,3132.3,3132.2,0.00321476]
[1731728726446,3.24212147,3132.3,3132.2,0.00321476]
[1731728726619,4.00922147,3132.3,3132.2,0.00321476]
[1731728727748,4.55922147,3132.3,3132.2,0.00321476]
[1731728729081,5.65461962,3132.3,3132.2,0.00321476]
[1731728729278,5.65461962,3132.3,3132.2,4.76e-06]
[1731728729577,20.68055966,3132.3,3132.2,4.76e-06]
[1731728730634,20.69055966,3132.3,3132.2,4.76e-06]
[1731728730838,3.1941,3130.8,3130.6,0.145297]
[1731728731056,3.23293498,3130.7,3130.6,0.145297]
[1731728731762,3.24293498,3130.7,3130.6,0.145297]
[1731728732255,3.24293498,3130.7,3130.6,0.14851176]
[1731728732584,3.80293498,3130.7,3130.6,0.14851176]
[1731728732750,5.1714761,3130.7,3130.6,0.14851176]
[1731728734379,8.1714761,3130.7,3130.6,0.14851176]
[1731728734543,17.0914761,3130.7,3130.6,0.14851176]
[1731728735385,16.3324761,3130.7,3130.6,1.76e-06]
[1731728735566,17.1014761,3130.7,3130.6,1.76e-06]
[1731728736986,17.1014761,3130.7,3128.9,0.46]
[1731728736987,3.19571,3129.2,3128.9,0.46]
[1731728737357,0.03661846,3129.1,3128.9,0.46]
[1731728737892,0.01,3129.3,3128.9,0.46]
[1731728738098,0.03657329,3129.0,3128.5,3.0]
[1731728738240,3.19581,3129.1,3128.9,0.00321476]
[1731728738553,4.57147329,3129.0,3128.9,0.00321476]
[1731728743355,4.56147329,3129.0,3128.9,0.00321476]
[1731728743586,0.05657329,3129.0,3128.9,0.00321476]
[1731728744132,0.03657329,3129.0,3128.9,0.00321476]
[1731728744708,0.03508727,3129.0,3128.9,0.00321476]
[1731728745364,3.23098727,3129.0,3128.9,0.00321476]
[1731728745590,3.24098727,3129.0,3128.9,0.00321476]
[1731728746300,0.03508727,3129.0,3128.9,0.00321476]
[1731728746529,0.01,3129.4,3128.9,0.00321476]
[1731728746530,0.02,3129.4,3128.9,0.00321476]
[1731728746675,3.21528,3129.7,3129.0,3.51582548]
[1731728747189,0.01,3129.7,3129.0,0.31992548]
[1731728747396,0.01,3129.7,3129.2,3.19568]
[1731728747596,0.01,3129.7,3129.2,3.19889476]
[1731728747768,0.01,3129.7,3129.3,0.31988948]
[1731728747970,0.01,3129.7,3129.3,0.32310424]